[Event "1000GM Spring IM-D 2024"]
[Site "New York"]
[Date "2024.03.31"]
[Round "7.1"]
[White "Lapshun, Yury"]
[Black "Ho, Cooper"]
[Result "1-0"]
[ECO "D11"]
[WhiteElo "2332"]
[BlackElo "2004"]
[Annotator "RC"]
[PlyCount "71"]
[EventDate "2024.03.26"]
[EventType "tourn"]
[EventCountry "USA"]
[SourceTitle "playchess.com"]
[Source "ChessBase"]
[SourceQuality "1"]
[TimeControl "5400+30"]

1. Nf3 {[%emt 0:27:11]} d5 {[%emt 0:00:08]} 2. d4 {[%emt 0:00:23]} Bf5 {[%emt 0:00:08]} 3. e3 {[%emt 0:00:42]} e6 {[%emt 0:00:10]} 4. c4 {[%emt 0:00:08]} c6 {[%emt 0:00:35]} 5. Nc3 {[%emt 0:00:17]} Bd6 {[%emt 0:00:16]} 6. Bd3 {[%emt 0:00:12]} Bxd3 {[%emt 0:00:50]} 7. Qxd3 {[%emt 0:00:02]} f5 {[%emt 0:01:22]} 8. h3 {[%emt 0:01:21]} Nh6 {[%emt 0:09:45]} 9. g4 {[%emt 0:04:49]} O-O {[%emt 0:04:35]} 10. g5 {[%emt 0:00:04]} Nf7 {[%emt 0:00:30]} 11. Rg1 {[%emt 0:00:03]} g6 {[%emt 0:13:11]} 12. Bd2 {[%emt 0:00:06]} Nd7 {[%emt 0:01:07]} 13. O-O-O {[%emt 0:00:16]} e5 {[%emt 0:05:55]} 14. Qf1 {[%emt 0:00:02]} e4 {[%emt 0:02:40]} 15. Ne1 {[%emt 0:00:01]} dxc4 {[%emt 0:00:58]} 16. Qxc4 {[%emt 0:01:33]} b5 {[%emt 0:00:48]} 17. Qb3 {[%emt 0:00:48]} a5 {[%emt 0:04:21]} 18. f3 {[%emt 0:04:35]} a4 {[%emt 0:13:25]} 19. Qc2 {[%emt 0:00:36]} Nb6 {[%emt 0:05:00]} 20. fxe4 {[%emt 0:02:44]} b4 {[%emt 0:00:11]} 21. exf5 {[%emt 0:01:31]} bxc3 {[%emt 0:03:53]} 22. Bxc3 {[%emt 0:00:22]} Qe7 {[%emt 0:05:20]} 23. e4 {[%emt 0:26:40]} Bf4+ {[%emt 0:03:23]} 24. Kb1 {[%emt 0:00:01]} Nxg5 {[%emt 0:02:48]} 25. Nd3 {[%emt 0:06:59]} Be3 {[%emt 0:02:17]} 26. Rge1 {[%emt 0:03:23]} Qxe4 {[%emt 0:00:44]} 27. Rxe3 {[%emt 0:08:25]} Qxe3 {[%emt 0:00:10]} 28. Re1 {[%emt 0:00:01]} Qxh3 {[%emt 0:01:57]} 29. fxg6 {[%emt 0:00:01]} hxg6 {[%emt 0:02:21]} 30. Ne5 {[%emt 0:05:22]} Qf5 {[%emt 0:00:22]} 31. Rg1 {[%emt 0:00:54]} Qf1+ {[%emt 0:03:02]} 32. Qc1 {[%emt 0:00:06]} Qxc1+ {[%emt 0:00:12]} 33. Kxc1 {[%emt 0:00:04]} Rf5 {[%emt 0:00:51]} 34. Bd2 {[%emt 0:01:22]} Nf3 {[%emt 0:01:47]} 35. Rxg6+ {[%emt 0:00:09]} Kf8 {[%emt 0:00:21]} 36. Bb4+ {[%emt 0:00:10]} 1-0

[Event "1000GM Spring IM-D 2024"]
[Site "New York"]
[Date "2024.03.31"]
[Round "7.2"]
[White "Espinosa, Pedro"]
[Black "Polyik, Peter"]
[Result "0-1"]
[ECO "D35"]
[WhiteElo "2229"]
[BlackElo "2295"]
[Annotator "RC"]
[PlyCount "120"]
[EventDate "2024.03.26"]
[EventType "tourn"]
[EventCountry "USA"]
[SourceTitle "playchess.com"]
[Source "ChessBase"]
[SourceQuality "1"]
[TimeControl "5400+30"]

1. d4 {[%emt 0:00:36]} Nf6 {[%emt 0:02:08]} 2. c4 {[%emt 0:00:05]} e6 {[%emt 0:00:06]} 3. Nf3 {[%emt 0:00:15]} d5 {[%emt 0:00:12]} 4. Nc3 {[%emt 0:00:28]} Nbd7 {[%emt 0:00:31]} 5. Bf4 {[%emt 0:03:57]} Bb4 {[%emt 0:00:42]} 6. cxd5 {[%emt 0:02:36]} exd5 {[%emt 0:00:07]} 7. e3 {[%emt 0:02:24]} Ne4 {[%emt 0:01:33]} 8. Qb3 {[%emt 0:05:57]} c5 {[%emt 0:06:50]} 9. Bb5 {[%emt 0:16:41]} Qa5 {[%emt 0:19:29]} 10. O-O {[%emt 0:12:30]} c4 {[%emt 0:03:00]} 11. Qd1 {[%emt 0:01:48]} Nxc3 {[%emt 0:08:03]} 12. bxc3 {[%emt 0:02:16]} Bxc3 {[%emt 0:01:55]} 13. Rb1 {[%emt 0:01:37]} O-O {[%emt 0:01:47]} 14. Bxd7 {[%emt 0:03:05]} Bxd7 {[%emt 0:00:06]} 15. Rxb7 {[%emt 0:00:47]} Bf5 {[%emt 0:00:55]} 16. Ne5 {[%emt 0:03:29]} Qa6 {[%emt 0:03:16]} 17. Rc7 {[%emt 0:01:57]} Rac8 {[%emt 0:01:36]} 18. Rxc8 {[%emt 0:02:57]} Rxc8 {[%emt 0:00:15]} 19. Qh5 {[%emt 0:01:36]} Be6 {[%emt 0:08:06]} 20. Qf3 {[%emt 0:04:51]} f6 {[%emt 0:05:59]} 21. Ng4 {[%emt 0:02:33]} h5 {[%emt 0:02:37]} 22. e4 {[%emt 0:03:50]} Bxd4 {[%emt 0:04:41]} 23. Ne3 {[%emt 0:00:40]} dxe4 {[%emt 0:01:50]} 24. Qxe4 {[%emt 0:00:56]} Bxe3 {[%emt 0:00:35]} 25. Bxe3 {[%emt 0:00:54]} c3 {[%emt 0:06:33]} 26. Qc2 {[%emt 0:07:35]} Qxa2 {[%emt 0:01:34]} 27. Qxa2 {[%emt 0:00:56]} Bxa2 {[%emt 0:00:19]} 28. Bxa7 {[%emt 0:01:00]} c2 {[%emt 0:00:06]} 29. Be3 {[%emt 0:00:38]} Rd8 {[%emt 0:00:51]} 30. f3 {[%emt 0:01:25]} Rd1 {[%emt 0:01:06]} 31. Kf2 {[%emt 0:00:45]} Kf7 {[%emt 0:00:06]} 32. h4 {[%emt 0:02:20]} Ke6 {[%emt 0:02:23]} 33. g4 {[%emt 0:01:17]} g6 {[%emt 0:02:06]} 34. Re1 {[%emt 0:01:43]} Kd5 {[%emt 0:00:25]} 35. Bc1 {[%emt 0:00:53]} Bc4 {[%emt 0:00:17]} 36. Be3 {[%emt 0:01:18]} Bd3 {[%emt 0:00:11]} 37. Bf4 {[%emt 0:02:06]} Kd4 {[%emt 0:04:45]} 38. gxh5 {[%emt 0:01:55]} gxh5 {[%emt 0:00:12]} 39. Re6 {[%emt 0:01:51]} f5 {[%emt 0:03:29]} 40. Rd6+ {[%emt 0:01:07]} Kc5 {[%emt 0:02:53]} 41. Rd8 {[%emt 0:01:09]} Bc4 {[%emt 0:00:31]} 42. Rf8 {[%emt 0:01:34]} Be6 {[%emt 0:00:38]} 43. Re8 {[%emt 0:00:50]} Kd5 {[%emt 0:00:17]} 44. Rd8+ {[%emt 0:01:49]} Kc6 {[%emt 0:00:06]} 45. Rh8 {[%emt 0:00:50]} c1=Q {[%emt 0:01:14]} 46. Bxc1 {[%emt 0:00:07]} Rxc1 {[%emt 0:00:03]} 47. Ke3 {[%emt 0:00:31]} Rc4 {[%emt 0:05:09]} 48. Rxh5 {[%emt 0:00:11]} Kd5 {[%emt 0:00:06]} 49. Rh8 {[%emt 0:00:50]} Ke5 {[%emt 0:00:06]} 50. h5 {[%emt 0:00:16]} Rc3+ {[%emt 0:00:58]} 51. Ke2 {[%emt 0:00:26]} Kf4 {[%emt 0:00:15]} 52. h6 {[%emt 0:00:29]} Rxf3 {[%emt 0:01:09]} 53. h7 {[%emt 0:00:21]} Rh3 {[%emt 0:00:19]} 54. Kf2 {[%emt 0:00:33]} Bf7 {[%emt 0:00:13]} 55. Kg2 {[%emt 0:00:27]} Rh6 {[%emt 0:00:05]} 56. Kf2 {[%emt 0:00:24]} Bg6 {[%emt 0:00:06]} 57. Rg8 {[%emt 0:00:24]} Bxh7 {[%emt 0:00:06]} 58. Rh8 {[%emt 0:00:05]} Kg5 {[%emt 0:00:10]} 59. Kg3 {[%emt 0:00:37]} Bg6 {[%emt 0:00:17]} 60. Rg8 {[%emt 0:00:17]} Rh7 {[%emt 0:00:16]} 0-1

[Event "1000GM Spring IM-D 2024"]
[Site "New York"]
[Date "2024.03.31"]
[Round "7.3"]
[White "Bonin, Jay"]
[Black "Yoo, Eugene"]
[Result "1/2-1/2"]
[ECO "A13"]
[WhiteElo "2154"]
[BlackElo "2205"]
[Annotator "RC"]
[PlyCount "123"]
[EventDate "2024.03.26"]
[EventType "tourn"]
[EventCountry "USA"]
[SourceTitle "playchess.com"]
[Source "ChessBase"]
[SourceQuality "1"]
[TimeControl "5400+30"]

1. Nf3 {[%emt 0:00:10]} Nf6 {[%emt 0:05:00]} 2. c4 {[%emt 0:00:10]} e6 {[%emt 0:00:17]} 3. g3 {[%emt 0:00:51]} a6 {[%emt 0:01:10]} 4. Bg2 {[%emt 0:00:43]} b5 {[%emt 0:00:16]} 5. b3 {[%emt 0:02:33]} Bb7 {[%emt 0:01:36]} 6. O-O {[%emt 0:00:44]} c5 {[%emt 0:03:32]} 7. Nc3 {[%emt 0:02:31]} Qb6 {[%emt 0:04:06]} 8. d4 {[%emt 0:06:05]} cxd4 {[%emt 0:08:48]} 9. Qxd4 {[%emt 0:00:33]} Qxd4 {[%emt 0:09:04]} 10. Nxd4 {[%emt 0:00:11]} Bxg2 {[%emt 0:00:02]} 11. Kxg2 {[%emt 0:00:02]} Bc5 {[%emt 0:00:15]} 12. Rd1 {[%emt 0:01:07]} bxc4 {[%emt 0:00:24]} 13. bxc4 {[%emt 0:01:57]} O-O {[%emt 0:24:58]} 14. Bg5 {[%emt 0:04:34]} Rc8 {[%emt 0:04:05]} 15. Bxf6 {[%emt 0:13:03]} gxf6 {[%emt 0:00:09]} 16. Na4 {[%emt 0:07:31]} Ra7 {[%emt 0:04:40]} 17. Nb3 {[%emt 0:03:01]} Be7 {[%emt 0:00:26]} 18. c5 {[%emt 0:02:34]} Rb7 {[%emt 0:03:50]} 19. Rd4 {[%emt 0:04:16]} f5 {[%emt 0:01:52]} 20. Rad1 {[%emt 0:00:18]} Rcc7 {[%emt 0:00:34]} 21. f4 {[%emt 0:06:01]} Nc6 {[%emt 0:04:19]} 22. R4d2 {[%emt 0:00:26]} Kf8 {[%emt 0:01:31]} 23. Nb6 {[%emt 0:02:49]} Ke8 {[%emt 0:00:07]} 24. Nc4 {[%emt 0:01:35]} Nb4 {[%emt 0:03:14]} 25. Nd6+ {[%emt 0:03:31]} Bxd6 {[%emt 0:00:03]} 26. cxd6 {[%emt 0:00:04]} Rc3 {[%emt 0:02:54]} 27. Na5 {[%emt 0:01:41]} Rb5 {[%emt 0:00:33]} 28. Rb1 {[%emt 0:01:14]} f6 {[%emt 0:07:30]} 29. a4 {[%emt 0:02:59]} Rxa5 {[%emt 0:02:09]} 30. Rxb4 {[%emt 0:00:07]} Kd8 {[%emt 0:00:08]} 31. Kh3 {[%emt 0:03:56]} Rac5 {[%emt 0:03:08]} 32. Kh4 {[%emt 0:01:43]} a5 {[%emt 0:01:09]} 33. Rb8+ {[%emt 0:01:01]} Rc8 {[%emt 0:00:01]} 34. Rxc8+ {[%emt 0:06:53]} Rxc8 {[%emt 0:00:36]} 35. Kh5 {[%emt 0:00:31]} Ke8 {[%emt 0:00:29]} 36. Kh6 {[%emt 0:00:08]} Kf7 {[%emt 0:00:49]} 37. Rb2 {[%emt 0:02:54]} e5 {[%emt 0:01:10]} 38. Rb7 {[%emt 0:06:48]} Ke6 {[%emt 0:00:47]} 39. Rc7 {[%emt 0:01:46]} Rb8 {[%emt 0:00:24]} 40. Kxh7 {[%emt 0:01:09]} Rb2 {[%emt 0:01:20]} 41. Rc3 {[%emt 0:03:42]} Rxe2 {[%emt 0:00:42]} 42. h4 {[%emt 0:00:18]} exf4 {[%emt 0:01:41]} 43. gxf4 {[%emt 0:02:11]} Rh2 {[%emt 0:00:01]} 44. Re3+ {[%emt 0:00:20]} Kxd6 {[%emt 0:00:01]} 45. Kg6 {[%emt 0:00:11]} Rxh4 {[%emt 0:00:17]} 46. Kxf5 {[%emt 0:00:20]} Kc5 {[%emt 0:01:11]} 47. Rb3 {[%emt 0:00:15]} Kc4 {[%emt 0:02:42]} 48. Rb6 {[%emt 0:01:49]} d5 {[%emt 0:00:00]} 49. Rxf6 {[%emt 0:00:38]} Rh2 {[%emt 0:00:09]} 50. Rc6+ {[%emt 0:01:20]} Kb4 {[%emt 0:00:25]} 51. Rb6+ {[%emt 0:00:21]} Kxa4 {[%emt 0:00:16]} 52. Ke5 {[%emt 0:00:10]} Rf2 {[%emt 0:00:22]} 53. f5 {[%emt 0:00:13]} d4 {[%emt 0:00:21]} 54. Rd6 {[%emt 0:00:41]} Kb3 {[%emt 0:00:41]} 55. Rxd4 {[%emt 0:00:17]} a4 {[%emt 0:00:01]} 56. f6 {[%emt 0:00:24]} a3 {[%emt 0:00:02]} 57. Rd3+ {[%emt 0:00:25]} Kb2 {[%emt 0:00:16]} 58. Rxa3 {[%emt 0:00:11]} Kxa3 {[%emt 0:00:04]} 59. Ke6 {[%emt 0:00:03]} Kb4 {[%emt 0:00:16]} 60. f7 {[%emt 0:00:04]} Kc5 {[%emt 0:00:02]} 61. Ke7 {[%emt 0:00:03]} Re2+ {[%emt 0:00:08]} 62. Kd7 {[%emt 0:00:08]} 1/2-1/2

[Event "1000GM Spring IM-D 2024"]
[Site "New York"]
[Date "2024.03.31"]
[Round "7.4"]
[White "Ho, Carter"]
[Black "Fedorowicz, John"]
[Result "1/2-1/2"]
[ECO "B33"]
[WhiteElo "2108"]
[BlackElo "2372"]
[Annotator "RC"]
[PlyCount "87"]
[EventDate "2024.03.26"]
[EventType "tourn"]
[EventCountry "USA"]
[SourceTitle "playchess.com"]
[Source "ChessBase"]
[SourceQuality "1"]
[TimeControl "5400+30"]

1. e4 {[%emt 0:04:11]} c5 {[%emt 0:05:09]} 2. Nf3 {[%emt 0:00:28]} Nc6 {[%emt 0:00:15]} 3. d4 {[%emt 0:00:08]} cxd4 {[%emt 0:00:08]} 4. Nxd4 {[%emt 0:00:03]} Qb6 {[%emt 0:00:54]} 5. Nb3 {[%emt 0:00:06]} Nf6 {[%emt 0:00:07]} 6. Nc3 {[%emt 0:00:05]} e6 {[%emt 0:00:09]} 7. a3 {[%emt 0:00:06]} a6 {[%emt 0:00:55]} 8. Be3 {[%emt 0:00:32]} Qc7 {[%emt 0:00:10]} 9. f4 {[%emt 0:01:35]} d6 {[%emt 0:00:12]} 10. Be2 {[%emt 0:03:44]} Be7 {[%emt 0:00:52]} 11. Qd2 {[%emt 0:08:00]} b5 {[%emt 0:01:14]} 12. g4 {[%emt 0:09:47]} Nd7 {[%emt 0:01:40]} 13. O-O-O {[%emt 0:14:10]} Rb8 {[%emt 0:08:15]} 14. g5 {[%emt 0:11:06]} b4 {[%emt 0:04:42]} 15. axb4 {[%emt 0:00:20]} Nxb4 {[%emt 0:00:18]} 16. f5 {[%emt 0:05:28]} Nc6 {[%emt 0:07:23]} 17. Bf4 {[%emt 0:05:33]} Nde5 {[%emt 0:01:54]} 18. f6 {[%emt 0:05:32]} gxf6 {[%emt 0:05:05]} 19. gxf6 {[%emt 0:00:07]} Bxf6 {[%emt 0:02:34]} 20. Qxd6 {[%emt 0:00:32]} Qxd6 {[%emt 0:00:04]} 21. Rxd6 {[%emt 0:00:06]} Rg8 {[%emt 0:00:41]} 22. Rdd1 {[%emt 0:12:47]} Bg5 {[%emt 0:00:26]} 23. Bxg5 {[%emt 0:00:19]} Rxg5 {[%emt 0:00:04]} 24. Nc5 {[%emt 0:01:03]} Nb4 {[%emt 0:04:53]} 25. Rhg1 {[%emt 0:01:44]} Rg6 {[%emt 0:00:41]} 26. Bh5 {[%emt 0:01:41]} Rxg1 {[%emt 0:00:47]} 27. Rxg1 {[%emt 0:00:05]} Ng6 {[%emt 0:00:20]} 28. Be2 {[%emt 0:02:39]} Ke7 {[%emt 0:00:41]} 29. h4 {[%emt 0:01:40]} Nxh4 {[%emt 0:05:53]} 30. Rh1 {[%emt 0:00:16]} Ng6 {[%emt 0:00:16]} 31. Rxh7 {[%emt 0:00:35]} Rb6 {[%emt 0:05:18]} 32. N3a4 {[%emt 0:00:40]} Rb8 {[%emt 0:00:33]} 33. c3 {[%emt 0:01:54]} Nc6 {[%emt 0:00:07]} 34. Bxa6 {[%emt 0:00:43]} Bxa6 {[%emt 0:01:16]} 35. Nxa6 {[%emt 0:00:03]} Rg8 {[%emt 0:00:10]} 36. b4 {[%emt 0:01:54]} Nge5 {[%emt 0:01:06]} 37. N4c5 {[%emt 0:04:10]} Rg2 {[%emt 0:01:57]} 38. b5 {[%emt 0:01:51]} Na5 {[%emt 0:00:26]} 39. b6 {[%emt 0:00:34]} Rg1+ {[%emt 0:03:26]} 40. Kc2 {[%emt 0:00:13]} Rg2+ {[%emt 0:00:19]} 41. Kc1 {[%emt 0:00:52]} Rf2 {[%emt 0:03:07]} 42. b7 {[%emt 0:03:25]} Nxb7 {[%emt 0:00:09]} 43. Nxb7 {[%emt 0:00:02]} Nd3+ {[%emt 0:00:08]} 44. Kd1 {[%emt 0:00:03]} 1/2-1/2

[Event "1000GM Spring IM-D 2024"]
[Site "New York"]
[Date "2024.03.31"]
[Round "7.5"]
[White "Safranek, William"]
[Black "Khodzhamkuliev, Bahadur"]
[Result "0-1"]
[ECO "B00"]
[WhiteElo "1950"]
[BlackElo "2159"]
[Annotator "RC"]
[PlyCount "70"]
[EventDate "2024.03.26"]
[EventType "tourn"]
[EventCountry "USA"]
[SourceTitle "playchess.com"]
[Source "ChessBase"]
[SourceQuality "1"]
[TimeControl "5400+30"]

1. e4 {[%emt 0:00:02]} Nc6 {[%emt 0:00:17]} 2. d4 {[%emt 0:00:07]} d6 {[%emt 0:00:05]} 3. Nc3 {[%emt 0:00:50]} Nf6 {[%emt 0:00:10]} 4. h3 {[%emt 0:00:26]} g6 {[%emt 0:00:34]} 5. g4 {[%emt 0:00:41]} Bg7 {[%emt 0:00:38]} 6. Nge2 {[%emt 0:00:11]} e5 {[%emt 0:00:48]} 7. Be3 {[%emt 0:00:14]} O-O {[%emt 0:01:31]} 8. Bg2 {[%emt 0:00:07]} Re8 {[%emt 0:10:28]} 9. O-O {[%emt 0:00:26]} Bxg4 {[%emt 0:03:24]} 10. hxg4 {[%emt 0:03:22]} Nxg4 {[%emt 0:00:11]} 11. Bh3 {[%emt 0:06:41]} Nxe3 {[%emt 0:03:27]} 12. fxe3 {[%emt 0:00:15]} Qg5+ {[%emt 0:01:34]} 13. Kf2 {[%emt 0:03:10]} Bh6 {[%emt 0:05:51]} 14. Qd3 {[%emt 0:06:37]} Nb4 {[%emt 0:11:57]} 15. Qd2 {[%emt 0:00:09]} f5 {[%emt 0:02:56]} 16. Rg1 {[%emt 0:21:49]} Qh4+ {[%emt 0:01:22]} 17. Kg2 {[%emt 0:00:04]} f4 {[%emt 0:01:19]} 18. Raf1 {[%emt 0:00:16]} exd4 {[%emt 0:07:50]} 19. Nxd4 {[%emt 0:00:43]} Qg3+ {[%emt 0:00:37]} 20. Kh1 {[%emt 0:00:04]} Qxh3+ {[%emt 0:00:09]} 21. Qh2 {[%emt 0:00:03]} Qxh2+ {[%emt 0:00:32]} 22. Kxh2 {[%emt 0:00:02]} fxe3 {[%emt 0:01:13]} 23. Ndb5 {[%emt 0:01:14]} Rf8 {[%emt 0:02:01]} 24. Nxc7 {[%emt 0:00:36]} Rxf1 {[%emt 0:00:49]} 25. Rxf1 {[%emt 0:00:03]} Rf8 {[%emt 0:00:30]} 26. Kg2 {[%emt 0:00:45]} Nxc2 {[%emt 0:01:43]} 27. N7b5 {[%emt 0:00:20]} Rxf1 {[%emt 0:01:24]} 28. Kxf1 {[%emt 0:00:02]} Bf4 {[%emt 0:01:22]} 29. Nxa7 {[%emt 0:01:30]} Nd4 {[%emt 0:02:10]} 30. Nc8 {[%emt 0:00:30]} Kf7 {[%emt 0:00:46]} 31. Nb6 {[%emt 0:00:39]} g5 {[%emt 0:00:54]} 32. a4 {[%emt 0:00:58]} h5 {[%emt 0:00:43]} 33. b4 {[%emt 0:00:15]} h4 {[%emt 0:00:14]} 34. a5 {[%emt 0:00:39]} h3 {[%emt 0:01:21]} 35. b5 {[%emt 0:00:56]} Nxb5 {[%emt 0:00:25]} 0-1

[Event "1000GM Spring IM-D 2024"]
[Site "New York"]
[Date "2024.03.31"]
[Round "7.6"]
[White "Shangin, Lev"]
[Black "Jakovljevic, Vlado"]
[Result "0-1"]
[ECO "D24"]
[WhiteElo "1994"]
[BlackElo "2356"]
[Annotator "RC"]
[PlyCount "40"]
[EventDate "2024.03.26"]
[EventType "tourn"]
[EventCountry "USA"]
[SourceTitle "playchess.com"]
[Source "ChessBase"]
[SourceQuality "1"]
[TimeControl "5400+30"]

1. d4 {[%emt 0:00:11]} d5 {[%emt 0:00:14]} 2. c4 {[%emt 0:00:23]} dxc4 {[%emt 0:00:24]} 3. Nc3 {[%emt 0:02:04]} a6 {[%emt 0:00:24]} 4. a4 {[%emt 0:01:12]} Nc6 {[%emt 0:00:46]} 5. e3 {[%emt 0:01:52]} Na5 {[%emt 0:00:10]} 6. Nf3 {[%emt 0:00:53]} Nf6 {[%emt 0:00:53]} 7. Ne5 {[%emt 0:01:50]} Be6 {[%emt 0:01:44]} 8. Be2 {[%emt 0:03:14]} g6 {[%emt 0:02:56]} 9. O-O {[%emt 0:02:26]} Bg7 {[%emt 0:00:17]} 10. Qc2 {[%emt 0:01:20]} O-O {[%emt 0:07:55]} 11. Bd2 {[%emt 0:07:59]} c5 {[%emt 0:08:50]} 12. dxc5 {[%emt 0:07:17]} Qc7 {[%emt 0:00:30]} 13. Nf3 {[%emt 0:03:07]} Qxc5 {[%emt 0:02:29]} 14. Nd4 {[%emt 0:03:16]} Bd7 {[%emt 0:06:20]} 15. Na2 {[%emt 0:02:52]} Rfc8 {[%emt 0:07:46]} 16. Bb4 {[%emt 0:04:46]} Qe5 {[%emt 0:02:48]} 17. Nf3 {[%emt 0:03:53]} Qc7 {[%emt 0:00:51]} 18. Rad1 {[%emt 0:06:29]} Bf5 {[%emt 0:04:18]} 19. Qd2 {[%emt 0:02:33]} Nb3 {[%emt 0:00:30]} 20. Qe1 {[%emt 0:00:10]} Bc2 {[%emt 0:01:15]} 0-1

[Event "1000GM Spring IM-D 2024"]
[Site "New York"]
[Date "2024.03.30"]
[Round "7.7"]
[White "Cherukuri, Nitesh"]
[Black "Urhegyi, Marton"]
[Result "1/2-1/2"]
[ECO "C54"]
[WhiteElo "2000"]
[BlackElo "2258"]
[Annotator "RC"]
[PlyCount "30"]
[EventDate "2024.03.26"]
[EventType "tourn"]
[EventCountry "USA"]
[SourceTitle "playchess.com"]
[Source "ChessBase"]
[SourceQuality "1"]
[TimeControl "5400+30"]

1. e4 {[%emt 0:00:26]} e5 {[%emt 0:00:07]} 2. Nf3 {[%emt 0:00:05]} Nc6 {[%emt 0:00:04]} 3. Bc4 {[%emt 0:00:04]} Bc5 {[%emt 0:00:06]} 4. c3 {[%emt 0:00:04]} Nf6 {[%emt 0:00:06]} 5. d3 {[%emt 0:00:04]} d6 {[%emt 0:00:06]} 6. O-O {[%emt 0:00:05]} h6 {[%emt 0:00:05]} 7. Nbd2 {[%emt 0:00:27]} a5 {[%emt 0:00:19]} 8. a4 {[%emt 0:01:39]} Ba7 {[%emt 0:00:40]} 9. Bb5 {[%emt 0:06:13]} O-O {[%emt 0:05:38]} 10. Bxc6 {[%emt 0:00:38]} bxc6 {[%emt 0:00:02]} 11. Nc4 {[%emt 0:00:09]} Bb6 {[%emt 0:01:33]} 12. Re1 {[%emt 0:05:51]} Re8 {[%emt 0:03:16]} 13. Rf1 {[%emt 0:00:07]} Rf8 {[%emt 0:00:06]} 14. Re1 {[%emt 0:00:03]} Re8 {[%emt 0:00:04]} 15. Rf1 {[%emt 0:00:06]} Rf8 {[%emt 0:00:05]} 1/2-1/2

[Event "1000GM Spring IM-D 2024"]
[Site "New York"]
[Date "2024.03.31"]
[Round "7.8"]
[White "Rohde, Michael"]
[Black "Mou, Iris"]
[Result "1/2-1/2"]
[ECO "D37"]
[WhiteElo "2318"]
[BlackElo "2216"]
[Annotator "RC"]
[PlyCount "82"]
[EventDate "2024.03.26"]
[EventType "tourn"]
[EventCountry "USA"]
[SourceTitle "playchess.com"]
[Source "ChessBase"]
[SourceQuality "1"]
[TimeControl "5400+30"]

1. d4 {[%emt 0:00:05]} Nf6 {[%emt 0:01:13]} 2. Nf3 {[%emt 0:00:09]} d5 {[%emt 0:00:09]} 3. c4 {[%emt 0:00:07]} e6 {[%emt 0:00:06]} 4. Nc3 {[%emt 0:00:06]} a6 {[%emt 0:00:07]} 5. cxd5 {[%emt 0:01:44]} exd5 {[%emt 0:00:09]} 6. Bg5 {[%emt 0:00:11]} Be7 {[%emt 0:02:31]} 7. e3 {[%emt 0:00:46]} h6 {[%emt 0:01:14]} 8. Bh4 {[%emt 0:01:19]} O-O {[%emt 0:00:35]} 9. Bd3 {[%emt 0:01:05]} c6 {[%emt 0:04:06]} 10. O-O {[%emt 0:00:48]} Be6 {[%emt 0:05:16]} 11. Ne5 {[%emt 0:00:53]} Ne8 {[%emt 0:03:46]} 12. Bg3 {[%emt 0:05:14]} Nd6 {[%emt 0:02:18]} 13. Qc2 {[%emt 0:00:30]} Qc8 {[%emt 0:06:49]} 14. Na4 {[%emt 0:01:08]} Qd8 {[%emt 0:17:29]} 15. Nc5 {[%emt 0:01:28]} Bc8 {[%emt 0:01:39]} 16. Rac1 {[%emt 0:00:56]} Nd7 {[%emt 0:09:58]} 17. Nexd7 {[%emt 0:10:49]} Bxd7 {[%emt 0:00:10]} 18. Bxd6 {[%emt 0:00:19]} Bxd6 {[%emt 0:00:09]} 19. Nxb7 {[%emt 0:00:14]} Bxh2+ {[%emt 0:00:15]} 20. Kxh2 {[%emt 0:00:08]} Qc7+ {[%emt 0:00:07]} 21. Kg1 {[%emt 0:00:25]} Qxb7 {[%emt 0:00:10]} 22. b3 {[%emt 0:00:56]} a5 {[%emt 0:06:40]} 23. a3 {[%emt 0:19:56]} Rfc8 {[%emt 0:11:33]} 24. Rb1 {[%emt 0:01:19]} Qb6 {[%emt 0:02:35]} 25. Rfc1 {[%emt 0:00:26]} Qd8 {[%emt 0:00:49]} 26. Qe2 {[%emt 0:10:06]} Qg5 {[%emt 0:03:02]} 27. Qf3 {[%emt 0:04:31]} h5 {[%emt 0:06:00]} 28. Qf4 {[%emt 0:03:15]} Qxf4 {[%emt 0:02:40]} 29. exf4 {[%emt 0:00:06]} g6 {[%emt 0:01:48]} 30. Rc5 {[%emt 0:00:32]} Rcb8 {[%emt 0:01:22]} 31. Kf1 {[%emt 0:02:07]} Kf8 {[%emt 0:01:07]} 32. Ke2 {[%emt 0:01:12]} Ke7 {[%emt 0:00:25]} 33. Kd2 {[%emt 0:00:22]} Kd6 {[%emt 0:00:25]} 34. a4 {[%emt 0:03:25]} h4 {[%emt 0:02:44]} 35. Kc3 {[%emt 0:00:52]} h3 {[%emt 0:01:05]} 36. gxh3 {[%emt 0:00:52]} Rh8 {[%emt 0:00:49]} 37. Re1 {[%emt 0:08:08]} Rxh3 {[%emt 0:00:51]} 38. Re3 {[%emt 0:00:04]} Rh1 {[%emt 0:04:25]} 39. Bc2 {[%emt 0:03:43]} Rh2 {[%emt 0:01:06]} 40. Rf3 {[%emt 0:01:21]} Bg4 {[%emt 0:00:45]} 41. Rg3 {[%emt 0:01:22]} Bd7 {[%emt 0:01:10]} 1/2-1/2